bitfinex/quotes_SOLUSD_20240816
["timestamp","ask_amount","ask_price","bid_price","bid_amount"]
[1723826223840,45.0,139.53,139.4,45.0]
[1723826224007,20.0,139.52,139.4,45.0]
[1723826224200,20.0,139.52,139.39,25.1089]
[1723826224201,45.0,139.51,139.39,25.1089]
[1723826224530,45.0,139.51,139.39,17.935]
[1723826224531,16.6583,139.49,139.39,17.935]
[1723826224717,20.0,139.48,139.39,17.935]
[1723826224921,6.1754,139.47,139.36,403.2381]
[1723826225236,20.0,139.46,139.37,27.175]
[1723826225436,20.0,139.46,139.37,20.0]
[1723826225639,20.0,139.46,139.36,385.3]
[1723826225923,20.0,139.46,139.34,7.1762]
[1723826226253,20.0,139.46,139.35,7.1761]
[1723826226406,20.0,139.46,139.35,7.79469325]
[1723826226604,20.0,139.46,139.35,17.9399]
[1723826227120,20.0,139.46,139.35,25.1159]
[1723826227316,20.0,139.46,139.36,45.0]
[1723826227927,20.0,139.46,139.34,7.1766]
[1723826228132,60.01,139.45,139.3,258.5]
[1723826228303,6.5717,139.44,139.3,258.5]
[1723826228500,65.0,139.43,139.3,258.5]
[1723826228949,15.3927,139.42,139.26,17.9511]
[1723826229133,6.6608,139.4,139.26,17.9511]
[1723826229306,20.0,139.39,139.26,25.1315]
[1723826229935,20.0,139.39,139.27,7.1801]
[1723826230111,45.0,139.38,139.26,17.9511]
[1723826230309,20.0,139.37,139.25,258.5]
[1723826230510,15.3927,139.36,139.25,258.5]
[1723826230709,20.0,139.35,139.25,276.4527]
[1723826231333,20.0,139.35,139.24,385.3]
[1723826231719,20.0,139.35,139.24,403.2539]
[1723826232040,20.0,139.35,139.25,7.1811]
[1723826232419,20.0,139.35,139.26,7.1807]
[1723826232607,20.0,139.35,139.27,45.0]
[1723826232811,15.3927,139.36,139.28,7.1792]
[1723826233021,20.0,139.35,139.25,17.953]
[1723826233608,6.2624,139.33,139.21,0.8294694]
[1723826233921,20.0,139.32,139.21,0.8294694]
[1723826234116,20.0,139.32,139.22,7.1828]
[1723826234320,20.0,139.32,139.21,18.7873694]
[1723826234839,20.0,139.32,139.21,25.9703694]
[1723826235644,20.0,139.32,139.22,1.26151149]
[1723826235855,20.0,139.32,139.22,45.0]
[1723826237148,20.0,139.32,139.22,52.1825]
[1723826237343,20.0,139.32,139.23,7.30769]
[1723826237562,6.2624,139.33,139.25,7.1809]
[1723826237723,6.2624,139.33,139.26,45.0]
[1723826238454,15.3927,139.36,139.27,0.12549]
[1723826238618,15.3927,139.36,139.27,447.13098]
[1723826238819,15.9851,139.41,139.34,7.1763]
[1723826239443,15.9851,139.41,139.35,45.0]
[1723826239953,15.9851,139.41,139.35,46.43437723]
[1723826240313,15.9851,139.41,139.35,45.0]
[1723826241154,15.9851,139.41,139.34,45.0]
[1723826242250,20.0,139.4,139.34,45.0]
[1723826243023,20.0,139.4,139.3,17.9461]
[1723826243761,20.0,139.4,139.31,7.1778]
[1723826244331,20.0,139.4,139.32,45.0]
[1723826245757,20.0,139.4,139.28,7.1794]
[1723826245957,20.0,139.4,139.3,7.1787]
[1723826246134,20.0,139.4,139.29,25.1268]
[1723826246550,20.0,139.4,139.29,17.9476]
[1723826246768,20.0,139.4,139.26,423.2514]
[1723826247052,20.0,139.4,139.28,7.1794]
[1723826247226,20.0,139.4,139.27,7.1801]
[1723826247431,20.0,139.4,139.28,17.9491]
[1723826247632,20.0,139.4,139.28,41.58]
[1723826248053,20.0,139.4,139.29,1.43412255]
[1723826248263,20.0,139.4,139.3,1.43452287]
[1723826248442,15.9851,139.41,139.3,43.01452287]
[1723826248787,15.9851,139.41,139.31,65.12549]
[1723826248929,15.9851,139.41,139.33,7.1768]
[1723826249126,15.9851,139.41,139.34,46.55960105]
[1723826249955,20.0,139.4,139.34,64.50090105]
[1723826250179,15.9851,139.41,139.35,7.176]
[1723826250348,15.9851,139.41,139.36,45.0]
[1723826250550,20.0,139.4,139.34,45.0]
[1723826250751,20.0,139.4,139.33,45.0]
[1723826251048,20.0,139.4,139.33,52.1771]
[1723826251274,15.9851,139.41,139.35,7.176]
[1723826251469,15.9851,139.41,139.36,45.81497093]
[1723826251661,15.9851,139.41,139.36,45.0]
[1723826251871,15.9851,139.41,139.35,45.0]
[1723826252445,15.9851,139.41,139.36,7.30079]
[1723826252683,15.9851,139.41,139.37,45.0]
[1723826252863,0.925614,139.46,139.38,7.1745]
[1723826252864,15.572,139.45,139.38,7.1745]
[1723826253055,15.572,139.45,139.37,45.0]
[1723826253246,15.572,139.45,139.34,385.3]
[1723826253446,15.572,139.45,139.35,45.0]
[1723826254354,20.0,139.44,139.35,45.0]
[1723826254961,20.0,139.44,139.34,385.3]
[1723826256581,16.3086,139.41,139.26,266.00369621]
[1723826256800,65.0,139.4,139.27,7.1799]
[1723826257286,65.0,139.4,139.26,258.5]
[1723826257287,6.279,139.39,139.26,276.4516]
[1723826257484,65.0,139.38,139.26,276.4516]
[1723826258300,16.2632,139.37,139.26,258.5]
[1723826258591,16.2632,139.37,139.27,45.0]
[1723826258892,20.0,139.36,139.26,258.5]
[1723826259378,6.2503,139.35,139.23,403.2551]
[1723826259581,20.0,139.34,139.23,25.1373]
[1723826260868,20.0,139.34,139.24,7.1818]
[1723826261066,20.0,139.34,139.25,7.1812]
[1723826261309,20.0,139.34,139.26,45.0]
[1723826262002,20.0,139.34,139.25,45.0]
[1723826262363,15.3988,139.33,139.21,0.8294694]
[1723826262667,20.0,139.32,139.21,0.8294694]
[1723826264096,20.0,139.32,139.21,8.0127694]
[1723826264394,20.0,139.32,139.21,0.8294694]
[1723826264699,6.2576,139.31,139.21,0.8294694]
[1723826264992,20.0,139.3,139.21,0.8294694]
[1723826265503,15.3822,139.29,139.21,0.8294694]
[1723826265709,71.2576,139.28,139.21,0.8294694]
[1723826267221,26.2576,139.28,139.21,0.8294694]
[1723826270708,60.6988,139.27,139.14,258.5]
[1723826271011,20.0,139.26,139.13,385.3]
[1723826271197,20.0,139.26,139.15,7.1861]
[1723826271685,20.0,139.26,139.16,7.1858]
[1723826272008,20.0,139.26,139.15,7.1864]
[1723826272396,20.0,139.26,139.16,45.0]
[1723826272819,20.0,139.26,139.15,45.0]
[1723826273126,20.0,139.26,139.15,52.1863]
[1723826273618,20.0,139.26,139.15,53.24147776]
[1723826273909,20.0,139.26,139.15,45.0]
[1723826274109,20.0,139.26,139.14,53.24504599]
[1723826274611,20.0,139.26,139.14,46.05824599]
[1723826274779,20.0,139.26,139.14,53.24524599]
[1723826274981,20.0,139.26,139.15,7.31189]
[1723826275207,20.0,139.26,139.16,45.0]
[1723826276493,20.0,139.26,139.16,52.1859]
[1723826276700,20.0,139.26,139.17,0.12549]
[1723826279090,20.0,139.26,139.16,52.1859]
[1723826280485,20.0,139.26,139.13,7.1874]
[1723826280681,51.0219,139.25,139.12,25.1573]
[1723826280913,20.0,139.24,139.12,25.1573]
[1723826281304,20.0,139.24,139.13,7.1874]
[1723826281786,20.0,139.24,139.13,392.4874]
[1723826282388,20.0,139.24,139.14,0.12549]
[1723826282711,20.0,139.24,139.14,45.12549]
[1723826283312,20.0,139.24,139.13,385.3]
[1723826283313,15.7101,139.23,139.13,385.3]
[1723826283511,20.0,139.22,139.13,385.3]
[1723826283894,6.1185,139.21,139.07,0.8294694]
[1723826284098,20.0,139.2,139.08,1.43687188]
[1723826284422,20.0,139.2,139.09,7.1892]
[1723826284720,20.0,139.2,139.09,8.62595346]
[1723826285017,15.1853,139.19,139.07,0.8294694]
[1723826285219,20.0,139.18,139.07,0.8294694]
[1723826285392,20.0,139.18,139.08,8.3739573]
[1723826286009,20.0,139.18,139.1,7.1889]
[1723826286200,20.0,139.18,139.11,25.1591]
[1723826286916,20.0,139.18,139.08,39.5544]
[1723826287222,20.0,139.18,139.1,7.1886]
[1723826287416,20.0,139.18,139.08,25.1643]
[1723826289017,20.0,139.18,139.07,8.0200694]
[1723826289840,20.0,139.18,139.08,7.19]
[1723826290116,20.0,139.18,139.07,25.9959694]
[1723826290789,20.0,139.18,139.08,45.0]
[1723826291184,51.6394,139.17,139.07,0.8294694]
[1723826291386,16.0847,139.16,139.07,0.8294694]
[1723826291587,26.6394,139.15,139.07,0.8294694]
[1723826292320,26.6394,139.15,139.08,0.5883348]
[1723826292629,26.6394,139.15,139.07,0.8294694]
[1723826294696,30.0,139.14,139.07,0.8294694]
[1723826295149,20.0,139.13,139.07,0.8294694]
[1723826297250,20.0,139.13,138.92,15.3277]
[1723826297428,20.0,139.03,138.87,2.86944184]
[1723826297632,17.9984,138.91,138.79,10.8294694]
[1723826297828,20.0,139.0,138.79,10.8294694]
[1723826298060,7.2046,138.8,138.79,10.8294694]
[1723826298216,7.2046,138.8,138.65,0.8294694]
[1723826298217,16.3271,138.79,138.65,0.8294694]
[1723826298417,42.8948,138.79,138.66,0.06268156]
[1723826298722,45.0,138.78,138.66,0.06268156]
[1723826299082,42.8948,138.79,138.66,0.06268156]
[1723826299083,18.0193,138.75,138.66,0.06268156]
[1723826299348,20.0,138.74,138.65,0.8294694]
[1723826299576,20.0,138.74,138.53,18.0454]
[1723826299577,6.6362,138.69,138.53,18.0454]
[1723826299724,7.2126,138.65,138.54,7.2178]
[1723826299918,6.6362,138.69,138.54,7.2178]
[1723826300257,65.0,138.68,138.47,18.0534]
[1723826300436,7.216,138.58,138.56,0.21614872]
[1723826300948,72.49575951,138.68,138.56,0.46244072]
[1723826301452,7.2162,138.58,138.56,0.46244072]
[1723826302327,20.0,138.57,138.56,0.46244072]
[1723826302530,65.0,138.57,138.56,0.46244072]
[1723826302756,7.2162,138.58,138.56,0.46244072]
[1723826302958,20.0,138.57,138.56,0.46244072]
[1723826303164,18.0296,138.67,138.56,0.46244072]
[1723826303536,7.49575951,138.68,138.56,0.46244072]
[1723826303882,7.49575951,138.68,138.56,0.246292]
[1723826304173,7.2156,138.59,138.56,0.246292]
[1723826304348,7.2161,138.58,138.56,0.246292]
[1723826304964,20.0,138.65,138.42,18.0609]
[1723826305177,7.49575951,138.68,138.39,15.8066]
[1723826305178,20.0,138.63,138.39,15.8066]
[1723826305476,65.0,138.62,138.38,18.0656]
[1723826305646,20.0,138.57,138.36,1.3047641]
[1723826305851,45.0,138.56,138.36,1.3047641]
[1723826306075,45.0,138.56,138.37,18.0667]
[1723826306272,20.0,138.55,138.39,7.2254]
[1723826306438,18.0468,138.53,138.37,18.0667]
[1723826306643,7.2209,138.49,138.4,7.2253]
[1723826306843,65.0,138.52,138.36,1.3047641]
[1723826307141,7.22,138.51,138.41,7.2247]
[1723826307349,20.0,138.52,138.38,20.0]
[1723826307643,7.2173,138.56,138.47,7.2216]
[1723826307860,7.2176,138.55,138.46,18.0552]
[1723826308062,7.217,138.57,138.46,18.0552]
[1723826308270,7.2135,138.63,138.55,7.2175]
[1723826308583,7.2135,138.63,138.53,18.0462]
[1723826308584,18.0356,138.63,138.53,18.0462]
[1723826308760,18.0356,138.63,138.49,25.2715]
[1723826308955,18.0356,138.63,138.49,18.0509]
[1723826309157,7.216,138.58,138.5,52.2202]
[1723826309551,7.216,138.58,138.5,45.0]
[1723826309759,18.0356,138.63,138.5,45.0]
[1723826309760,7.2154,138.6,138.5,45.0]
[1723826309958,7.2155,138.59,138.51,7.2191]
[1723826310171,7.2155,138.59,138.5,45.0]
[1723826310172,7.2155,138.59,138.5,52.2201]
[1723826310353,7.2148,138.61,138.52,7.2191]
[1723826310566,18.0356,138.63,138.53,45.0]
[1723826310761,25.5177223,138.63,138.5,45.0]
[1723826311089,18.0366,138.61,138.47,7.2217]
[1723826311290,18.0366,138.61,138.48,7.2212]
[1723826311781,7.2166,138.57,138.48,18.0527]
[1723826312087,65.0,138.6,138.44,18.0577]
[1723826312261,7.2207,138.49,138.4,25.2877]
[1723826312467,7.2217,138.47,138.31,20.0]
[1723826312767,7.2217,138.47,138.33,56.1428]
[1723826313275,6.6114,138.54,138.36,19.3727641]
[1723826313583,65.0,138.53,138.36,1.3047641]
[1723826313776,7.2248,138.42,138.36,1.3047641]
[1723826313977,65.0,138.53,138.36,1.3047641]
[1723826314290,18.0512,138.5,138.36,8.5319641]
[1723826314578,7.2217,138.48,138.36,1.3047641]
[1723826314781,7.2219,138.47,138.36,1.3047641]
[1723826315105,7.2219,138.47,138.38,7.2263]
[1723826315580,20.0,138.53,138.4,7.2254]
[1723826315788,7.2201,138.51,138.41,63.0618]
[1723826315964,18.041,138.58,138.42,0.12549]
[1723826316282,7.2165,138.58,138.48,7.221]
[1723826316592,7.216,138.59,138.5,18.0504]
[1723826316792,25.5177223,138.63,138.51,46.44301306]
[1723826317077,7.2139,138.62,138.53,25.265]
[1723826317251,18.0306,138.66,138.54,45.0]
[1723826317252,7.2147,138.61,138.54,45.0]
[1723826317664,7.2161,138.58,138.49,25.2713]
[1723826317864,18.0337,138.63,138.5,52.2201]
[1723826318069,7.2155,138.59,138.51,7.2196]
[1723826318271,18.0337,138.63,138.49,18.0506]
[1723826318481,20.0,138.62,138.45,15.8737]
[1723826318656,20.0,138.62,138.38,63.07]
[1723826318657,7.2192,138.52,138.44,7.2231]
[1723826318992,40.0,138.64,138.41,18.0617]
[1723826319354,20.0,138.61,138.41,25.2861]
[1723826319555,65.0,138.6,138.41,25.2861]
[1723826319966,20.0,138.59,138.39,7.2258]
[1723826320170,65.0,138.58,138.4,7.2252]
[1723826320490,65.0,138.58,138.38,18.0661]
[1723826320784,65.0,138.58,138.44,7.2233]
[1723826321080,65.0,138.58,138.37,15.8135]
[1723826321300,65.0,138.58,138.39,18.0636]
[1723826321654,20.0,138.56,138.38,7.2264]
[1723826321855,65.0,138.55,138.37,15.8135]
[1723826322369,20.0,138.54,138.36,1.3047641]
[1723826322570,65.0,138.53,138.36,1.3047641]
[1723826322764,65.0,138.53,138.38,7.2264]
[1723826322981,55.0,138.53,138.37,7.2269]
[1723826323168,55.0,138.53,138.39,7.2257]
[1723826323360,20.0,138.53,138.39,7.2258]
[1723826323679,20.0,138.55,138.39,18.0638]
[1723826323932,20.0,138.56,138.36,1.3047641]
[1723826324089,20.0,138.55,138.36,1.3047641]
[1723826324382,20.0,138.56,138.36,1.3047641]
[1723826324383,7.2254,138.4,138.36,1.3047641]
[1723826324567,7.2255,138.4,138.36,1.3047641]
[1723826324762,20.0,138.53,138.36,1.3047641]
[1723826324950,20.0,138.56,138.36,1.3047641]
[1723826324951,7.2249,138.41,138.36,1.3047641]
[1723826325163,7.2256,138.4,138.36,1.3047641]
[1723826325593,20.0,138.46,138.36,1.3047641]
[1723826325774,7.2237,138.44,138.36,8.5321641]
[1723826326177,18.0521,138.49,138.36,1.3047641]
[1723826326609,6.4965,138.57,138.4,7.2254]
[1723826326610,18.0475,138.53,138.4,7.2254]
[1723826326899,7.2213,138.48,138.41,52.2248]
[1723826327081,20.0,138.49,138.41,45.0]
[1723826327277,6.4965,138.57,138.42,18.0597]
[1723826327481,6.4965,138.57,138.41,45.0]
[1723826327482,6.4965,138.57,138.43,45.0]
[1723826327688,7.47734666,138.55,138.45,7.2223]
[1723826327906,20.0,138.56,138.46,45.0]
[1723826328195,20.0,138.56,138.46,52.2222]
[1723826328407,20.0,138.56,138.46,45.0]
[1723826328698,6.3706,138.64,138.46,63.0547]
[1723826328928,6.3706,138.64,138.46,45.0]
[1723826329078,20.0,138.59,138.46,52.222]
[1723826329482,7.47659654,138.58,138.37,36.1325]
[1723826329706,7.47659654,138.58,138.4,18.0625]
[1723826329877,7.47659654,138.58,138.39,20.0]
[1723826330088,7.47659654,138.58,138.42,18.0598]
[1723826330488,7.47659654,138.58,138.44,7.2232]
[1723826330802,7.47659654,138.58,138.45,45.0]
[1723826331006,6.3706,138.64,138.45,45.0]
[1723826331007,6.3706,138.64,138.46,20.0]
[1723826331306,7.2156,138.59,138.51,7.2195]
[1723826331505,7.2156,138.59,138.52,52.219]
[1723826331807,13.84555066,138.64,138.52,45.0]
[1723826332190,7.2156,138.59,138.52,52.219]
[1723826332391,7.2151,138.6,138.52,52.219]
[1723826332586,18.0358,138.62,138.52,45.0]
[1723826332806,18.0358,138.62,138.51,45.0]
[1723826333323,18.0386,138.6,138.45,18.0568]
[1723826333530,18.0386,138.6,138.45,36.1129]
[1723826333712,7.2161,138.58,138.5,7.2197]
[1723826333917,7.2166,138.57,138.49,18.0508]
[1723826334115,18.0339,138.63,138.49,18.0508]
[1723826334317,20.0,138.62,138.49,18.0508]
[1723826334521,7.2161,138.58,138.5,7.2201]
[1723826334710,13.84555066,138.64,138.51,63.0479]
[1723826335033,7.2148,138.61,138.53,7.2185]
[1723826335336,7.47495066,138.64,138.54,45.0]
[1723826335631,18.0261,138.69,138.54,45.0]
[1723826335841,7.2129,138.64,138.55,18.0431]
[1723826336006,18.0261,138.69,138.55,18.0431]
[1723826336007,7.2119,138.66,138.58,7.2159]
[1723826336329,7.2119,138.66,138.59,45.0]
[1723826336530,7.2126,138.65,138.59,45.0]
[1723826336895,7.212,138.66,138.59,45.0]
[1723826337140,7.2114,138.67,138.59,45.0]
[1723826337339,7.2114,138.67,138.58,45.0]
[1723826337633,7.2109,138.68,138.59,18.0379]
[1723826337847,7.2109,138.68,138.6,45.0]
[1723826338001,7.2109,138.68,138.6,52.2146]
[1723826338535,32.97347846,138.74,138.6,52.2146]
[1723826338536,7.2098,138.7,138.62,7.2135]
[1723826338697,7.47563346,138.74,138.63,45.0]
[1723826338897,18.0175,138.76,138.64,7.2124]
[1723826338898,7.2088,138.72,138.64,7.2124]
[1723826339138,7.2082,138.73,138.65,52.212]
[1723826339326,7.2082,138.73,138.66,7.2117]
[1723826339526,7.2113,138.68,138.6,25.2514]
[1723826339830,7.47921546,138.74,138.57,18.041]
[1723826340033,18.0283,138.68,138.56,15.8518]
[1723826340204,7.2138,138.63,138.56,15.8518]
[1723826340602,7.213,138.64,138.56,33.8937]
[1723826340929,25.49901546,138.74,138.58,20.0]
[1723826341238,18.0198,138.74,138.61,18.0361]
[1723826341742,7.2072,138.75,138.67,7.2108]
[1723826342041,18.0175,138.78,138.68,45.0]
[1723826342042,25.2235,138.78,138.68,45.0]
[1723826342209,25.2232,138.78,138.71,7.2091]
[1723826342546,25.2232,138.78,138.72,45.0]
[1723826342547,7.2057,138.78,138.72,45.0]
[1723826342835,31.89419595,138.83,138.72,45.0]
[1723826343041,7.2047,138.8,138.72,52.2083]
[1723826343339,7.2052,138.79,138.72,52.2086]
[1723826343541,7.2047,138.8,138.72,52.2086]
[1723826343717,7.2047,138.8,138.73,7.2081]
[1723826344038,18.0041,138.86,138.74,45.0]
[1723826344221,7.204,138.82,138.74,52.2073]
[1723826344536,7.2025,138.84,138.76,25.2225]
[1723826344742,7.2025,138.84,138.77,45.0]
[1723826344916,7.2025,138.84,138.77,52.2059]
[1723826345120,17.9986,138.9,138.78,24.5555]
[1723826345328,7.2036,138.82,138.74,7.2074]
[1723826345517,7.2036,138.82,138.75,45.0]
[1723826345835,7.4796456,138.89,138.75,45.0]
[1723826346047,7.2026,138.84,138.77,7.206]
[1723826346342,7.4796456,138.89,138.78,45.0]
[1723826346343,25.4798456,138.89,138.78,45.0]
[1723826346505,7.2024,138.85,138.78,45.0]
[1723826346705,18.0002,138.89,138.78,52.2056]
[1723826346901,7.2021,138.85,138.78,45.0]
[1723826347329,7.2021,138.85,138.78,52.2056]
[1723826347539,18.0002,138.89,138.78,45.0]
[1723826347717,7.2043,138.81,138.74,7.2076]
[1723826347910,18.0033,138.87,138.75,7.2068]
[1723826348113,7.2037,138.82,138.75,7.2068]
[1723826348314,18.0033,138.87,138.74,7.2076]
[1723826349021,18.0058,138.85,138.73,18.0202]
[1723826349226,7.205,138.8,138.73,25.2282]
[1723826349427,7.203,138.83,138.73,18.0202]
[1723826349945,7.2037,138.82,138.75,7.207]
[1723826350310,7.2021,138.85,138.76,45.0]
[1723826350507,7.2028,138.84,138.76,52.2065]
[1723826350707,7.2031,138.83,138.75,25.2244]
[1723826350922,7.2031,138.83,138.76,7.2065]
[1723826351306,18.0048,138.86,138.73,7.2081]
[1723826351535,7.2048,138.8,138.73,7.2081]
[1723826351738,7.2042,138.81,138.73,7.2081]
[1723826352314,7.2046,138.8,138.73,7.2081]
[1723826352847,18.0048,138.86,138.73,7.2081]
[1723826352848,7.2041,138.81,138.74,45.0]
[1723826353021,7.2036,138.82,138.74,63.0186]
[1723826353219,18.0048,138.86,138.74,63.0186]
[1723826353534,18.0048,138.86,138.77,18.0147]
[1723826353535,7.2015,138.86,138.77,18.0147]
[1723826353715,7.2015,138.86,138.78,45.0]
[1723826353929,7.47680821,138.9,138.74,18.019]
[1723826354322,7.203,138.84,138.76,7.2065]
[1723826354525,7.2031,138.83,138.76,7.2065]
[1723826354713,7.47680821,138.9,138.71,24.5653]
[1723826354916,7.207,138.76,138.71,6.5427]
[1723826355126,7.2063,138.77,138.71,6.5427]
[1723826355317,7.2068,138.76,138.69,25.2354]
[1723826355525,7.2072,138.75,138.69,18.0252]
[1723826356045,18.0121,138.8,138.69,18.0252]
[1723826356216,18.0148,138.78,138.68,400.546]
[1723826356553,18.0148,138.78,138.68,15.246]
[1723826356554,7.2078,138.74,138.68,15.246]
[1723826356843,7.2071,138.76,138.68,15.246]
[1723826357047,7.2071,138.76,138.68,22.4567]
[1723826357347,7.2077,138.74,138.68,15.246]
[1723826357739,18.0109,138.81,138.68,15.246]
[1723826357927,7.2049,138.8,138.73,7.2082]
[1723826358246,6.1901,138.86,138.72,7.2086]
[1723826358247,7.2051,138.79,138.72,7.2086]
[1723826358545,7.2057,138.78,138.7,18.0238]
[1723826358756,7.53515404,138.84,138.71,45.0]
[1723826359051,20.0,138.83,138.73,7.2078]
[1723826359218,7.2049,138.8,138.74,45.0]
[1723826359537,7.2051,138.79,138.74,45.0]
[1723826359740,7.2056,138.78,138.73,45.0]
[1723826359935,7.2052,138.79,138.73,45.0]
[1723826360244,20.0,138.83,138.73,45.0]
[1723826360447,20.0,138.83,138.68,15.246]
[1723826360448,45.0,138.82,138.68,15.246]
[1723826360645,7.2098,138.7,138.68,15.246]
[1723826360819,18.0227,138.72,138.62,15.9547]
[1723826361023,7.2114,138.67,138.62,15.9547]
[1723826361328,7.2104,138.69,138.62,15.9547]
[1723826361536,7.2104,138.69,138.62,23.1686]
[1723826361716,7.2104,138.69,138.62,23.1684]
[1723826361912,7.2092,138.71,138.64,7.2128]
[1723826362345,7.2103,138.69,138.65,45.0]
[1723826362622,7.2103,138.69,138.63,18.0329]
[1723826362623,7.2099,138.7,138.64,45.0]
[1723826362931,36.5326,138.81,138.62,15.9547]
[1723826363229,7.2118,138.66,138.62,15.9547]
[1723826363625,7.2114,138.67,138.62,15.9547]
[1723826363830,7.2109,138.68,138.62,15.9547]
[1723826364149,7.2115,138.67,138.62,15.9547]
[1723826364345,7.212,138.66,138.62,15.9547]
[1723826364719,7.2128,138.65,138.57,7.2161]
[1723826365047,6.2555,138.75,138.56,34.3896]
[1723826365048,6.2555,138.75,138.56,16.3473]
[1723826365365,7.2135,138.63,138.56,16.3473]
[1723826365523,18.0284,138.67,138.56,16.3473]
[1723826365847,18.0245,138.7,138.56,16.3473]
[1723826366054,20.0,138.69,138.56,16.3473]
[1723826366349,7.2133,138.64,138.56,23.5641]
[1723826366571,7.2124,138.65,138.57,7.2165]
[1723826367066,20.0,138.69,138.54,18.0441]
[1723826367368,7.215,138.6,138.52,7.52129618]
[1723826367514,18.0336,138.63,138.52,6.0809]
[1723826367948,7.2156,138.59,138.52,6.0809]
[1723826368155,7.216,138.58,138.51,18.0489]
[1723826368316,18.0373,138.61,138.5,0.6494418]
[1723826368657,14.75197157,138.58,138.5,0.6494418]
[1723826368828,18.0401,138.58,138.5,0.6494418]
[1723826369025,25.57531684,138.58,138.5,0.6494418]
[1723826369225,7.2182,138.54,138.5,0.6494418]
[1723826369432,7.2175,138.56,138.5,0.6494418]
[1723826369621,20.0,138.6,138.5,0.6494418]
[1723826369827,7.2161,138.58,138.51,7.2195]
[1723826370045,7.2166,138.57,138.5,18.6997418]
[1723826370263,7.2182,138.54,138.5,0.6494418]
[1723826370455,18.0363,138.61,138.5,0.6494418]
[1723826370770,7.2176,138.55,138.5,0.6494418]
[1723826371286,7.2186,138.53,138.5,0.6494418]
[1723826371573,18.0401,138.58,138.5,0.6494418]
[1723826371949,7.218,138.55,138.5,0.6494418]
[1723826372151,7.2182,138.54,138.5,0.6494418]
[1723826372556,7.2181,138.54,138.5,0.6494418]
[1723826372946,7.2187,138.53,138.5,0.6494418]
[1723826373145,7.2176,138.55,138.5,0.6494418]
[1723826373573,7.2161,138.58,138.51,7.2195]
[1723826373771,7.2161,138.58,138.5,7.8695418]
[1723826374471,7.2166,138.57,138.5,7.8695418]
[1723826374653,7.2166,138.57,138.51,45.0]
[1723826375048,18.0362,138.61,138.51,45.0]
[1723826375049,7.2161,138.58,138.51,45.0]
[1723826375449,7.2161,138.58,138.52,0.85171359]
[1723826375650,7.2161,138.58,138.51,52.2196]
[1723826376179,7.2167,138.57,138.51,45.0]
[1723826376467,7.2171,138.56,138.5,0.6494418]
[1723826376676,7.2181,138.55,138.5,0.6494418]
[1723826377751,7.2171,138.56,138.5,0.6494418]
[1723826378170,18.0362,138.61,138.5,0.6494418]
[1723826378467,20.0,138.6,138.5,0.6494418]
[1723826378883,7.217,138.57,138.5,0.6494418]
[1723826379093,7.2172,138.56,138.5,0.6494418]
[1723826379382,7.2171,138.56,138.5,0.6494418]
[1723826380052,7.2177,138.55,138.5,0.6494418]
[1723826380667,7.2171,138.56,138.5,0.6494418]